fUST/lending_fUST_20250615
["ID","MTS","AMOUNT","RATE_DAILY","PERIOD"]
[365912438,1749984640477,-151.0,0.00022096,7]
[365912440,1749984640486,-151.0,0.00022096,7]
[365912441,1749984640495,-151.0,0.00022096,7]
[365912443,1749984640504,-151.0,0.00022096,7]
[365912446,1749984640513,-151.0,0.00022096,7]
[365912448,1749984640523,-151.0,0.00022096,7]
[365912450,1749984640533,-151.0,0.00022096,7]
[365912452,1749984640542,-633.729489,0.00022096,2]
[365912454,1749984640551,-633.729489,0.00022096,2]
[365912456,1749984640561,-1753.89,0.00022096,2]
[365912458,1749984640571,-801.78,0.00022096,2]
[365912460,1749984640581,-709.29,0.00022096,2]
[365912462,1749984640591,-151.0,0.00022096,7]
[365912464,1749984640600,-360.0,0.00022096,2]
[365912466,1749984640613,-460.0,0.00022096,2]
[365912468,1749984640622,-182.71691222,0.00022096,2]
[365912470,1749984640637,-741.71308778,0.00022096,2]
[365912472,1749984640646,-460.0,0.00022096,2]
[365912474,1749984640658,-460.0,0.00022096,2]
[365912476,1749984640667,-460.0,0.00022096,2]
[365912478,1749984640677,-460.0,0.00022096,2]
[365912481,1749984640688,-1605.92,0.00022096,2]
[365912483,1749984640698,-460.0,0.00022096,2]
[365912485,1749984640708,-225.72876996,0.00022097,2]
[365912487,1749984640718,-460.0,0.00022097,2]
[365912489,1749984640727,-460.0,0.00022097,2]
[365912491,1749984640736,-460.0,0.00022097,2]
[365912493,1749984640746,-151.0,0.00022097,7]
[365912495,1749984640755,-151.0,0.00022097,7]
[365912497,1749984640765,-151.0,0.00022097,7]
[365912499,1749984640775,-460.0,0.00022097,2]
[365912501,1749984640784,-168.282192,0.00022097,7]
[365912503,1749984640794,-168.282192,0.00022097,7]
[365912505,1749984640803,-742.79,0.00022097,2]
[365912507,1749984640813,-1016.44,0.00022097,2]
[365912509,1749984640822,-460.0,0.00022097,2]
[365912511,1749984640831,-400.0,0.00022097,2]
[365912513,1749984640840,-967.28,0.00022097,2]
[365912515,1749984640850,-753.82,0.00022097,2]
[365912517,1749984640859,-151.824491,0.00022097,7]
[365912519,1749984640867,-2330.55,0.00022097,2]
[365912521,1749984640877,-151.0,0.00022097,7]
[365912522,1749984640887,-151.0,0.00022097,7]
[365912524,1749984640896,-1083.44667353,0.00022107,6]
[365912526,1749984640905,-151.0,0.00022214,2]
[365912528,1749984640914,-500.0,0.00022214,2]
[365912530,1749984640924,-151.0,0.00022214,2]
[365912532,1749984640934,-1760.12789081,0.00022214,2]
[365912535,1749984640943,-500.0,0.00022214,2]
[365912537,1749984640953,-151.0,0.00022214,2]
[365912539,1749984640962,-500.0,0.00022214,2]
[365912540,1749984640972,-151.0,0.00022214,2]
[365912542,1749984640982,-1688.0,0.00022214,2]
[365912544,1749984640991,-591.10451232,0.00022214,2]
[365912546,1749984641000,-151.0,0.00022214,2]
[365912548,1749984641010,-258.210803,0.00022214,2]
[365912550,1749984641020,-207.4,0.00022214,2]
[365912552,1749984641030,-420.0,0.00022258,2]
[365912554,1749984641039,-420.0,0.00022258,2]
[365912556,1749984641048,-1083.44667353,0.00022279,6]
[365912558,1749984641058,-500.0,0.00022356,2]
[365912561,1749984641067,-504.0,0.00022364,2]
[365912563,1749984641077,-1269.93,0.00022369,2]
[365912565,1749984641087,-1707.02,0.00022369,2]
[365912567,1749984641097,-639.9,0.00022369,2]
[365912569,1749984641106,-151.0,0.00022369,7]
[365912571,1749984641115,-460.0,0.00022369,2]
[365912573,1749984641125,-460.0,0.00022369,2]
[365912575,1749984641134,-1239.72,0.00022369,2]
[365912577,1749984641144,-497.15,0.00022369,2]
[365912579,1749984641153,-1033.22,0.00022369,2]
[365912580,1749984641162,-1182.83,0.00022369,2]
[365912583,1749984641172,-460.0,0.00022369,2]
[365912585,1749984641181,-984.62,0.0002237,2]
[365912587,1749984641191,-1753.89,0.0002237,2]
[365912589,1749984641200,-801.78,0.0002237,2]
[365912591,1749984641209,-709.29,0.0002237,2]
[365912593,1749984641218,-460.0,0.0002237,2]
[365912594,1749984641229,-924.43,0.0002237,2]
[365912597,1749984641241,-460.0,0.0002237,2]
[365912598,1749984641250,-460.0,0.0002237,2]
[365912600,1749984641259,-460.0,0.0002237,2]
[365912602,1749984641269,-460.0,0.0002237,2]
[365912604,1749984641278,-1605.92,0.0002237,2]
[365912607,1749984641288,-460.0,0.0002237,2]
[365912609,1749984641298,-460.0,0.00022371,2]
[365912611,1749984641307,-151.0,0.00022371,7]
[365912613,1749984641316,-156.233307,0.00022371,7]
[365912615,1749984641325,-460.0,0.00022371,2]
[365912617,1749984641334,-151.0,0.00022371,7]
[365912619,1749984641343,-460.0,0.00022371,2]
[365912621,1749984641352,-627.645162,0.00022371,7]
[365912623,1749984641361,-627.645162,0.00022371,7]
[365912625,1749984641372,-460.0,0.00022371,2]
[365912627,1749984641381,-742.79,0.00022371,2]
[365912629,1749984641390,-151.0,0.00022371,7]
[365912631,1749984641399,-1016.44,0.00022371,2]
[365912633,1749984641408,-460.0,0.00022371,2]
[365912635,1749984641422,-967.28,0.00022371,2]
[365912637,1749984641431,-151.0,0.00022371,7]
[365912639,1749984641440,-151.0,0.00022371,7]
[365912641,1749984641449,-368.351561,0.00022371,7]
[365912643,1749984641458,-368.351561,0.00022371,7]
[365912645,1749984641467,-753.82,0.00022371,2]
[365912647,1749984641476,-2330.55,0.00022371,2]
[365912649,1749984641486,-508.12,0.000224,7]
[365912651,1749984641495,-1000.0,0.00022438,2]
[365912653,1749984641503,-1000.0,0.00022438,2]
[365912655,1749984641512,-1000.0,0.00022438,2]
[365912657,1749984641522,-1000.0,0.00022438,2]
[365912659,1749984641531,-1000.0,0.00022438,2]
[365912661,1749984641540,-1000.0,0.00022438,2]
[365912663,1749984641551,-1000.0,0.00022438,2]
[365912665,1749984641560,-1000.0,0.00022438,2]
[365912667,1749984641569,-1000.0,0.00022438,2]
[365912669,1749984641578,-1000.0,0.00022438,2]
[365912671,1749984641587,-1000.0,0.00022438,2]
[365912673,1749984641596,-1000.0,0.00022438,2]
[365912675,1749984641605,-1000.0,0.00022438,2]
[365912677,1749984641620,-1000.0,0.00022438,2]
[365912679,1749984641629,-924.60234557,0.00022438,2]
[365912681,1749984641638,-1083.44667353,0.00022452,7]
[365912683,1749984641647,-515.82955525,0.00022589,2]
[365912685,1749984641656,-890.56,0.000226,7]
[365912687,1749984641665,-1083.44667353,0.00022624,7]
[365912689,1749984641673,-15307.69077643,0.00022643,2]
[365912691,1749984641682,-26522.41303693,0.00022643,2]
[365912702,1749984641774,-1763.49301306,0.00022643,2]
[365912704,1749984641784,-1269.93,0.00022643,2]
[365912706,1749984641793,-1707.02,0.00022643,2]
[365912708,1749984641802,-639.9,0.00022643,2]
[365912710,1749984641811,-460.0,0.00022643,2]
[365912712,1749984641821,-276.2619277,0.00022643,2]
[365912714,1749984641833,-183.7380723,0.00022643,2]
[365912717,1749984641843,-1239.72,0.00022643,2]
[365912719,1749984641852,-1033.22,0.00022643,2]
[365912721,1749984641861,-1182.83,0.00022643,2]
[365912722,1749984641870,-460.0,0.00022643,2]
[365912725,1749984641880,-984.62,0.00022644,2]
[365912727,1749984641889,-151.0,0.00022644,7]
[365912729,1749984641898,-151.0,0.00022644,7]
[365912731,1749984641908,-154.177358,0.00022644,7]
[365912733,1749984641917,-163.632209,0.00022644,7]
[365912735,1749984641926,-151.0,0.00022644,7]
[365912749,1749984642033,-633.729489,0.00022644,2]
[365912751,1749984642058,-633.729489,0.00022644,2]
[365912753,1749984642068,-1753.89,0.00022644,2]
[365912755,1749984642076,-801.78,0.00022644,2]
[365912757,1749984642087,-709.29,0.00022644,2]
[365912759,1749984642096,-151.0,0.00022644,7]
[365912761,1749984642106,-472.88,0.00022644,2]
[365912763,1749984642114,-924.43,0.00022644,2]
[365912765,1749984642123,-460.0,0.00022644,2]
[365912767,1749984642132,-460.0,0.00022644,2]
[365912768,1749984642142,-460.0,0.00022644,2]
[365912770,1749984642151,-460.0,0.00022644,2]
[365912773,1749984642160,-1605.92,0.00022644,2]
[365912774,1749984642169,-460.0,0.00022644,2]
[365912776,1749984642179,-151.024489,0.00022644,7]
[365912778,1749984642188,-151.0,0.00022644,7]
[365912780,1749984642197,-460.0,0.00022645,2]
[365912782,1749984642206,-151.0,0.00022645,7]
[365912784,1749984642215,-151.0,0.00022645,7]
[365912786,1749984642225,-460.0,0.00022645,2]
[365912788,1749984642234,-151.0,0.00022645,7]
[365912790,1749984642243,-151.0,0.00022645,7]
[365912791,1749984642252,-151.0,0.00022645,7]
[365912792,1749984642261,-460.0,0.00022645,2]
[365912793,1749984642270,-151.0,0.00022645,7]
[365912794,1749984642279,-151.0,0.00022645,7]
[365912795,1749984642288,-460.0,0.00022645,2]
[365912796,1749984642297,-742.79,0.00022645,2]
[365912797,1749984642306,-1016.44,0.00022645,2]
[365912798,1749984642315,-460.0,0.00022645,2]
[365912799,1749984642324,-967.28,0.00022645,2]
[365912800,1749984642333,-753.82,0.00022645,2]
[365912801,1749984642343,-2330.55,0.00022645,2]
[365912802,1749984642351,-484.47434949,0.00022771,2]
[365912803,1749984642360,-160.08545363,0.00022795,2]
[365912804,1749984642369,-1083.44667353,0.00022797,7]
[365912805,1749984642379,-6218.27,0.0002284,2]
[365912806,1749984642388,-151.0,0.00022843,7]
[365912807,1749984642398,-1269.93,0.00022917,2]
[365912808,1749984642407,-1707.02,0.00022917,2]
[365912809,1749984642417,-639.9,0.00022917,2]
[365912810,1749984642426,-460.0,0.00022917,2]
[365912811,1749984642435,-460.0,0.00022917,2]
[365912812,1749984642444,-1239.72,0.00022917,2]
[365912813,1749984642453,-1033.22,0.00022917,2]
[365912814,1749984642462,-1182.83,0.00022917,2]
[365912815,1749984642472,-460.0,0.00022917,2]
[365912817,1749984642481,-984.62,0.00022918,2]
[365912819,1749984642490,-151.0,0.00022918,7]
[365912821,1749984642500,-166.916215,0.00022918,7]
[365912823,1749984642509,-151.0,0.00022918,7]
[365912826,1749984642518,-168.282192,0.00022918,7]
[365912828,1749984642528,-168.282192,0.00022918,7]
[365912830,1749984642537,-1753.89,0.00022918,2]
[365912833,1749984642547,-801.78,0.00022918,2]
[365912835,1749984642557,-709.29,0.00022918,2]
[365912837,1749984642569,-924.43,0.00022918,2]
[365912839,1749984642578,-527.97,0.00022918,2]
[365912841,1749984642587,-460.0,0.00022918,2]
[365912843,1749984642597,-349.78,0.00022918,2]
[365912846,1749984642606,-460.0,0.00022918,2]
[365912848,1749984642621,-1605.92,0.00022918,2]
[365912850,1749984642631,-460.0,0.00022918,2]
[365912852,1749984642640,-460.0,0.00022919,2]
[365912854,1749984642650,-460.0,0.00022919,2]
[365912856,1749984642659,-151.0,0.00022919,7]
[365912858,1749984642669,-460.0,0.00022919,2]
[365912860,1749984642678,-627.645162,0.00022919,7]
[365912862,1749984642689,-627.645162,0.00022919,7]
[365912864,1749984642700,-460.0,0.00022919,2]
[365912866,1749984642709,-742.79,0.00022919,2]
[365912868,1749984642718,-152.495924,0.00022919,7]
[365912870,1749984642727,-1016.44,0.00022919,2]
[365912872,1749984642736,-460.0,0.00022919,2]
[365912874,1749984642746,-967.28,0.00022919,2]
[365912876,1749984642755,-151.0,0.00022919,7]
[365912878,1749984642764,-151.0,0.00022919,7]
[365912880,1749984642774,-368.351561,0.00022919,7]
[365912882,1749984642783,-368.351561,0.00022919,7]
[365912884,1749984642792,-753.82,0.00022919,2]
[365912886,1749984642801,-2330.55,0.00022919,2]
[365912888,1749984642811,-151.0,0.00022919,7]
[365912890,1749984642819,-152.72351,0.0002292,7]
[365912892,1749984642829,-1083.44667353,0.00022969,8]
[365912894,1749984642839,-500.0,0.00022973,2]
[365912895,1749984642847,-500.0,0.00022973,2]
[365912897,1749984642857,-500.0,0.00022973,2]
[365912899,1749984642867,-500.0,0.00022973,2]
[365912901,1749984642876,-252.66161971,0.00022973,2]
[365912903,1749984642885,-500.0,0.00022973,2]
[365912905,1749984642894,-500.0,0.00022973,2]
[365912907,1749984642903,-500.0,0.00022973,2]
[365912909,1749984642912,-500.0,0.00022973,2]
[365912911,1749984642921,-500.0,0.00022973,2]
[365912913,1749984642931,-503.34287607,0.00022973,2]
[365912915,1749984642941,-500.0,0.00022973,2]
[365912917,1749984642950,-500.0,0.00022973,2]
[365912919,1749984642959,-500.0,0.00022973,2]
[365912921,1749984642968,-500.0,0.00022973,2]
[365912923,1749984642978,-519.043125,0.00022973,2]
[365912925,1749984642987,-500.0,0.00022973,2]
[365912927,1749984642996,-500.0,0.00022973,2]
[365912929,1749984643006,-628.81958972,0.00022973,2]
[365912931,1749984643015,-500.0,0.00022973,2]
[365912933,1749984643024,-500.0,0.00022973,2]
[365912935,1749984643033,-500.0,0.00022973,2]
[365912937,1749984643043,-500.0,0.00022973,2]
[365912939,1749984643051,-500.0,0.00022973,2]
[365912941,1749984643060,-500.0,0.00022973,2]
[365912943,1749984643070,-500.0,0.00022973,2]
[365912945,1749984643079,-500.0,0.00022973,2]
[365912947,1749984643088,-500.0,0.00022973,2]
[365912949,1749984643098,-500.0,0.00022973,2]
[365912951,1749984643107,-500.0,0.00022973,2]
[365912953,1749984643116,-600.0,0.00022973,2]
[365912956,1749984643126,-500.0,0.00022973,2]
[365912958,1749984643135,-500.0,0.00022973,2]
[365912960,1749984643144,-151.0,0.00022973,7]
[365912962,1749984643154,-151.0,0.00022973,7]
[365912964,1749984643163,-151.0,0.00022973,7]
[365912966,1749984643172,-633.729489,0.00022973,2]
[365912968,1749984643181,-633.729489,0.00022973,2]
[365912970,1749984643190,-151.0,0.00022973,7]
[365912973,1749984643199,-5600.94206452,0.0002299,2]
[365912975,1749984643208,-151.0,0.0002299,7]
[365912977,1749984643217,-5000.0,0.00022996,2]
[365912979,1749984643226,-151.0,0.00022996,7]
[365912980,1749984643235,-151.0,0.00022996,7]
[365912982,1749984643244,-159.789916,0.00022996,7]
[365912984,1749984643253,-151.0,0.00022996,7]
[365912986,1749984643262,-151.0,0.00022996,7]
[365912988,1749984643271,-5989.46906902,0.00023,2]
[365912990,1749984643280,-827.1631375,0.00023,2]
[365912992,1749984643290,-6022.6412642,0.00023,3]
[365912994,1749984643299,-127618.16708313,0.00023,2]
[365912996,1749984643308,-20360.49078114,0.00023,20]
[365912998,1749984643317,-151.0,0.00023,7]
[365913000,1749984643326,-151.0,0.00023,7]
[365913002,1749984643336,-151.0,0.00023,7]
[365913004,1749984643346,-151.0,0.00023,7]
[365913006,1749984643355,-151.0,0.00023,7]
[365913008,1749984643364,-207.266489,0.00023,7]
[365913010,1749984643373,-207.266489,0.00023,7]
[365913012,1749984643382,-151.0,0.00023,7]
[365913014,1749984643391,-151.0,0.00023,7]
[365913016,1749984643400,-151.0,0.00023,7]
[365913018,1749984643409,-151.0,0.00023,7]
[365913020,1749984643418,-151.0,0.00023,7]
[365913022,1749984643427,-154.693772,0.00023,7]
[365913024,1749984643436,-151.0,0.00023,7]
[365913026,1749984643445,-151.0,0.00023,7]
[365913028,1749984643454,-151.0,0.00023,7]
[365913030,1749984643463,-151.0,0.00023,7]
[365913032,1749984643472,-151.0,0.00023,7]
[365913034,1749984643481,-249.469447,0.00023,7]
[365913036,1749984643490,-151.0,0.00023,7]
[365913038,1749984643499,-151.0,0.00023,7]
[365913040,1749984643509,-153.134164,0.00023,7]
[365913042,1749984643518,-627.645162,0.00023,7]
[365913044,1749984643527,-627.645162,0.00023,7]
[365913046,1749984643536,-151.0,0.00023,7]
[365913048,1749984643545,-151.0,0.00023,7]
[365913050,1749984643554,-151.0,0.00023,7]
[365913052,1749984643563,-151.0,0.00023,7]
[365913054,1749984643573,-151.0,0.00023,7]
[365913056,1749984643584,-189.105303,0.00023,7]
[365913058,1749984643593,-181.175563,0.00023,7]
[365913060,1749984643603,-168.282192,0.00023,7]
[365913062,1749984643617,-168.282192,0.00023,7]
[365913064,1749984643626,-168.282192,0.00023,7]
[365913066,1749984643636,-168.282192,0.00023,7]
[365913068,1749984643645,-151.0,0.00023,7]
[365913070,1749984643656,-151.0,0.00023,7]
[365913072,1749984643665,-633.729489,0.00023,2]
[365913074,1749984643674,-633.729489,0.00023,2]
[365913076,1749984643683,-500.0,0.00023,2]
[365913078,1749984643692,-151.0,0.00023,7]
[365913080,1749984643701,-151.0,0.00023,7]
[365913082,1749984643711,-151.0,0.00023,7]
[365913084,1749984643720,-151.0,0.00023,7]
[365913086,1749984643730,-151.0,0.00023,7]
[365913088,1749984643739,-151.0,0.00023,7]
[365913090,1749984643748,-368.351561,0.00023,7]
[365913092,1749984643756,-368.351561,0.00023,7]
[365913094,1749984643765,-368.351561,0.00023,7]
[365913096,1749984643775,-368.351561,0.00023,7]
[365913098,1749984643784,-1371.107852,0.00023003,3]
[365913100,1749984643793,-600.0,0.0002304,2]
[365913102,1749984643802,-168.0,0.00023089,2]
[365913103,1749984643811,-160.05769408,0.00023096,2]
[365913106,1749984643821,-160.08545363,0.00023096,2]
[365913108,1749984643830,-160.05769406,0.00023096,2]
[365913110,1749984643839,-168.0,0.00023136,2]
[365913111,1749984643849,-1083.44667353,0.00023141,8]
[365913113,1749984643858,-515.82955525,0.0002316,2]
[365913115,1749984643867,-1269.93,0.00023191,2]
[365913117,1749984643876,-1707.02,0.00023191,2]
[365913119,1749984643885,-639.9,0.00023191,2]
[365913121,1749984643895,-451.3179755,0.00023191,2]
[365913123,1749984643904,-460.0,0.00023191,2]
[365913125,1749984643914,-1239.72,0.00023191,2]
[365913127,1749984643923,-1033.22,0.00023191,2]
[365913129,1749984643932,-1182.83,0.00023191,2]
[365913131,1749984643942,-460.0,0.00023191,2]
[365913133,1749984643951,-984.62,0.00023192,2]
[365913135,1749984643960,-1753.89,0.00023192,2]
[365913137,1749984643969,-801.78,0.00023192,2]
[365913139,1749984643979,-709.29,0.00023192,2]
[365913141,1749984643988,-924.43,0.00023192,2]
[365913143,1749984643998,-460.0,0.00023192,2]
[365913145,1749984644007,-260.74,0.00023192,2]
[365913147,1749984644016,-1605.92,0.00023192,2]
[365913149,1749984644025,-460.0,0.00023192,2]
[365913151,1749984644034,-460.0,0.00023193,2]
[365913153,1749984644043,-519.86,0.00023193,2]
[365913155,1749984644053,-460.0,0.00023193,2]
[365913157,1749984644063,-460.0,0.00023193,2]
[365913159,1749984644072,-742.79,0.00023193,2]
[365913161,1749984644082,-1016.44,0.00023193,2]
[365913163,1749984644092,-460.0,0.00023193,2]
[365913165,1749984644101,-967.28,0.00023193,2]
[365913167,1749984644110,-753.82,0.00023193,2]
[365913169,1749984644119,-2330.55,0.00023193,2]
[365913171,1749984644129,-151.0,0.00023195,7]
[365913173,1749984644138,-151.0,0.00023262,7]
[365913175,1749984644148,-151.0,0.00023262,7]
[365913177,1749984644157,-368.351561,0.00023262,7]
[365913179,1749984644167,-368.351561,0.00023262,7]
[365913181,1749984644176,-207.266489,0.0002328,7]
[365913183,1749984644185,-207.266489,0.0002328,7]
[365913185,1749984644195,-151.0,0.0002328,7]
[365913187,1749984644205,-153.681451,0.0002328,7]
[365913189,1749984644215,-151.0,0.0002328,7]
[365913191,1749984644224,-606.18394068,0.0002328,2]
[365913193,1749984644234,-1083.44667353,0.00023314,9]
[365913195,1749984644243,-151.0,0.00023319,7]
[365913197,1749984644252,-151.0,0.00023319,7]
[365913199,1749984644261,-151.0,0.00023341,7]
[365913201,1749984644271,-633.729489,0.00023341,2]
[365913203,1749984644280,-633.729489,0.00023341,2]
[365913205,1749984644289,-151.0,0.00023341,7]
[365913207,1749984644298,-500.0,0.00023356,2]
[365913209,1749984644307,-160.08545363,0.00023397,2]
[365913211,1749984644316,-153.0,0.00023397,2]
[365913212,1749984644325,-151.0,0.000234,10]
[365913213,1749984644334,-151.0,0.00023433,7]
[365913214,1749984644343,-151.0,0.00023433,7]
[365913215,1749984644352,-500.0,0.00023439,2]
[365913216,1749984644361,-1269.93,0.00023465,2]
[365913217,1749984644370,-1707.02,0.00023465,2]
[365913219,1749984644379,-639.9,0.00023465,2]
[365913221,1749984644388,-460.0,0.00023465,2]
[365913222,1749984644397,-1239.72,0.00023465,2]
[365913224,1749984644406,-1033.22,0.00023465,2]
[365913226,1749984644415,-1182.83,0.00023465,2]
[365913228,1749984644424,-247.34034897,0.00023465,2]
[365913231,1749984644433,-151.0,0.00023466,7]
[365913233,1749984644443,-984.62,0.00023466,2]
[365913234,1749984644452,-151.0,0.00023466,7]
[365913236,1749984644460,-627.645162,0.00023466,7]
[365913238,1749984644469,-627.645162,0.00023466,7]
[365913240,1749984644478,-151.0,0.00023466,7]
[365913242,1749984644487,-151.0,0.00023466,7]
[365913244,1749984644496,-151.0,0.00023466,7]
[365913246,1749984644505,-168.282192,0.00023466,7]
[365913248,1749984644514,-168.282192,0.00023466,7]
[365913250,1749984644523,-1753.89,0.00023466,2]
[365913252,1749984644532,-801.78,0.00023466,2]
[365913254,1749984644541,-709.29,0.00023466,2]
[365913256,1749984644550,-924.43,0.00023466,2]
[365913258,1749984644561,-460.0,0.00023466,2]
[365913259,1749984644571,-1605.92,0.00023466,2]
[365913260,1749984644580,-460.0,0.00023466,2]
[365913261,1749984644589,-460.0,0.00023467,2]
[365913262,1749984644599,-460.0,0.00023467,2]
[365913263,1749984644608,-171.90873186,0.00023467,2]
[365913264,1749984644621,-742.79,0.00023467,2]
[365913265,1749984644631,-1016.44,0.00023467,2]
[365913266,1749984644640,-460.0,0.00023467,2]
[365913267,1749984644651,-967.28,0.00023467,2]
[365913268,1749984644661,-753.82,0.00023467,2]
[365913269,1749984644670,-2330.55,0.00023467,2]
[365913270,1749984644680,-257.21706969,0.00023473,2]
[365913271,1749984644690,-3000.0,0.0002348,2]
[365913272,1749984644700,-151.0,0.0002348,7]
[365913273,1749984644710,-151.0,0.0002348,7]
[365913274,1749984644719,-151.0,0.0002348,7]
[365913275,1749984644729,-1083.44667353,0.00023486,9]
[365913276,1749984644739,-3000.0,0.0002349,2]
[365913277,1749984644748,-151.0,0.0002349,7]
[365913278,1749984644757,-151.0,0.0002349,7]
[365913279,1749984644766,-3000.0,0.000235,2]
[365913280,1749984644776,-500.0,0.000235,2]
[365913281,1749984644786,-500.0,0.000235,2]
[365913282,1749984644795,-500.0,0.000235,2]
[365913283,1749984644804,-500.0,0.000235,2]
[365913284,1749984644813,-3000.0,0.0002351,2]
[365913288,1749984644931,-500.0,0.00023519,2]
[365913290,1749984644941,-3000.0,0.0002352,2]
[365913292,1749984644951,-1000.0,0.00023521,2]
[365913294,1749984644962,-500.0,0.00023521,2]
[365913295,1749984644971,-1000.0,0.00023521,2]
[365913296,1749984644980,-1000.0,0.00023521,2]
[365913297,1749984644989,-1000.0,0.00023521,2]
[365913298,1749984644998,-507.55460346,0.00023521,2]
[365913299,1749984645007,-500.0,0.00023521,2]
[365913300,1749984645017,-1000.0,0.00023521,2]
[365913301,1749984645026,-1000.0,0.00023521,2]
[365913302,1749984645036,-500.0,0.00023521,2]
[365913303,1749984645046,-500.0,0.00023521,2]
[365913304,1749984645056,-1000.0,0.00023521,2]
[365913305,1749984645066,-1000.0,0.00023521,2]
[365913306,1749984645075,-1000.0,0.00023521,2]
[365913307,1749984645084,-500.0,0.00023521,2]
[365913308,1749984645094,-1000.0,0.00023521,2]
[365913309,1749984645103,-1200.0,0.00023521,2]
[365913310,1749984645113,-500.0,0.00023521,2]
[365913311,1749984645123,-151.0,0.00023521,7]
[365913312,1749984645132,-151.0,0.00023521,7]
[365913313,1749984645143,-368.351561,0.00023521,7]
[365913314,1749984645153,-368.351561,0.00023521,7]
[365913315,1749984645162,-151.0,0.00023522,7]
[365913316,1749984645172,-633.729489,0.00023522,2]
[365913317,1749984645181,-633.729489,0.00023522,2]
[365913318,1749984645192,-3000.0,0.0002353,2]
[365913319,1749984645201,-621.54734664,0.00023537,30]
[365913320,1749984645210,-151.0,0.00023537,7]
[365913321,1749984645220,-184.30823,0.00023537,7]
[365913322,1749984645230,-500.0,0.00023538,2]
[365913323,1749984645240,-3000.0,0.0002354,2]
[365913324,1749984645250,-151.0,0.0002354,7]
[365913325,1749984645259,-3000.0,0.0002355,2]
[365913326,1749984645268,-151.0,0.0002355,7]
[365913327,1749984645278,-151.0,0.0002355,7]
[365913328,1749984645287,-168.282192,0.0002355,7]
[365913329,1749984645296,-168.282192,0.0002355,7]
[365913330,1749984645306,-500.0,0.00023557,2]
[365913331,1749984645316,-3000.0,0.0002356,2]
[365913332,1749984645325,-200.0,0.00023561,2]
[365913333,1749984645335,-3000.0,0.0002357,2]
[365913334,1749984645345,-627.645162,0.0002357,7]
[365913335,1749984645355,-627.645162,0.0002357,7]
[365913336,1749984645365,-500.0,0.0002357,2]
[365913337,1749984645374,-3000.0,0.0002358,2]
[365913338,1749984645384,-151.0,0.0002358,7]
[365913339,1749984645393,-151.0,0.0002358,7]
[365913340,1749984645403,-215.0738,0.00023583,2]
[365913341,1749984645413,-3000.0,0.0002359,2]
[365913342,1749984645423,-151.0,0.00023596,7]
[365913343,1749984645432,-168.0,0.00023596,2]
[365913344,1749984645442,-2222.9,0.000236,2]
[365913345,1749984645452,-3000.0,0.000236,2]
[365913346,1749984645462,-508.12,0.000236,7]
[365913347,1749984645471,-500.0,0.000236,2]
[365913348,1749984645480,-151.0,0.000236,7]
[365913349,1749984645490,-207.266489,0.000236,7]